Cogmind - Beta 15 @@@ ROGUE MODE // 2025.10.11 @ 00:07:58 Player: GolbalwarmingLord Result: Destroyed by D-53 Grenadier with Mini Grenade Launcher Performance ------------- Evolutions (0) 0 Regions Visited (2) 400 Robots Destroyed (21) 105 Value Destroyed (511) 511 Prototype IDs (0) 0 Alien Tech Used (0) 0 Bonus (0) 0 TOTAL SCORE: 1016 Bonus ------- None Cogmind --------- Core Integrity 0/250 Matter 290/300 Energy 70/100 System Corruption 0% Temperature Cool (0) Movement Core (400) Ox7 Location -10/Mines Parts ------- > --- POWER (1) -------- (None) > --- PROPULSION (2) --- (None) > --- UTILITY (2) ------ Large Storage Unit > --- WEAPON (2) ------- Medium Laser Mace > --- INVENTORY (15) --- Improved Treads Improved Treads Aluminum Leg Aluminum Leg Compact Wheel Compact Wheel Small Storage Unit Huge Storage Unit Improved Terrain Scanner Hacking Suite Grenade Launcher Peak State ------------ > --- POWER ------------ Light Nuclear Core > --- PROPULSION ------- Improved Treads Improved Treads > --- UTILITY ---------- Heat Sink Large Storage Unit > --- WEAPON ----------- Heavy Assault Rifle Heavy Assault Rifle > --- INVENTORY -------- Light Ion Engine Improved Treads Improved Treads Aluminum Leg Aluminum Leg Compact Wheel Compact Wheel Small Storage Unit Huge Storage Unit Improved Terrain Scanner Medium Laser Light Assault Rifle Light Assault Rifle Grenade Launcher Mace [Rating: 15] Favorites ----------- Power Light Nuclear Core Engine Light Ion Engine Power Core Light Nuclear Core Propulsion Light Treads Treads Light Treads Utility Large Storage Unit Device Heat Sink Storage Large Storage Unit Protection Medium Armor Plating Weapon Heavy Assault Rifle Energy Gun Medium Laser Ballistic Gun Heavy Assault Rifle Launcher Grenade Launcher Impact Weapon Mace Build | -11 -10 -10 ------- Run | Yrd Mat Min Slots Evolved . | . . . Power . | . . . Propulsion . | . . . Utility . | . . . Weapon . | . . . Parts Attached 19 | 7 10 2 Power 2 | 1 1 . Engine 1 | 1 . . Core 1 | . 1 . Reactor . | . . . Propulsion 4 | 2 2 . Treads 4 | 2 2 . Leg . | . . . Wheel . | . . . Hover . | . . . Flight . | . . . Utility 6 | 2 4 . Device 2 | 1 1 . Storage 3 | 1 2 . Processor . | . . . Hackware . | . . . Protection 1 | . 1 . Artifact . | . . . Weapon 7 | 2 3 2 Energy Gun 1 | . . 1 Energy Cannon . | . . . Ballistic Gun 4 | 2 2 . Ballistic Cannon . | . . . Launcher 1 | . 1 . Special Weapon . | . . . Impact Weapon 1 | . . 1 Slashing Weapon . | . . . Piercing Weapon . | . . . Special Melee Weapon . | . . . Unidentified Prototypes . | . . . Parts Lost 8 | . 1 7 Power 2 | . . 2 Propulsion 2 | . . 2 Utility 2 | . 1 1 Weapon 2 | . . 2 Highest Loss Streak 6 | . 1 6 To Critical Strikes . | . . . Average Backups 10 | 2 11 13 Power . | . . . Propulsion 3 | 1 4 6 Utility 2 | . 3 4 Weapon 3 | . 3 2 Tool/Special . | . . . Unused Backups 7 | . . 7 Power . | . . . Propulsion 6 | . . 6 Utility 1 | . . 1 Weapon . | . . . Tool/Special . | . . . Average Slot Usage (%) 97 | . 97 95 Engine 2 | . 2 2 Core 10 | . 11 9 Treads 27 | . 28 26 Device 8 | . 8 13 Storage 14 | . 14 14 Protection 3 | . 3 . Ballistic Gun 26 | . 26 26 Launcher 1 | . 1 . Peak Build Rating 15 | 9 15 15 Average Rating 12 | 6 13 13 On Entrance 8 | . 9 15 Naked Turns . | . . . Heaviest Build 38 | 11 38 32 Greatest Support 46 | 40 46 46 Greatest Overweight (x) . | . . . Average Overweight (x) . | . . . Largest Inventory Capacity 25 | 8 25 15 Average Capacity 14 | 7 14 15 Most Carried 15 | 4 15 14 Average Carried 10 | 2 12 13 Final Capacity 15 | 8 15 15 Final Carried 14 | 3 14 11 Class Distribution -------------------- 100% | Mutant Dominant Class ---------------- Mutant | -10/Materials Mutant | -10/Mines Resources | -11 -10 -10 ----------- Run | Yrd Mat Min Matter Collected 838 | 223 596 19 Remotely . | . . . Salvage Created 795 | 142 634 19 Parts 35 | 7 28 . Haulers Intercepted . | . . . Recyclers Shooed 1 | 1 . . Parts Field Recycled . | . . . Retrieved Matter . | . . . Parts Self-Destructed . | . . . Prevented . | . . . Kills | -11 -10 -10 ------- Run | Yrd Mat Min Combat Hostiles Destroyed 15 | . 14 1 Guns 13 | . 12 1 AOE 2 | . 2 . Classes Destroyed 8 | 3 4 1 Worker 1 | 1 . . Tunneler 1 | 1 . . Recycler 2 | 1 1 . Operator 1 | . 1 . Watcher 2 | . 2 . Swarmer 3 | . 3 . Grunt 11 | . 11 . Assembled 1 | . . 1 Best Kill Streak 4 | 2 4 1 Combat Bots Only 3 | . 3 1 Max Kills in Single Turn 2 | 1 2 1 Gunslinging . | . . . Exploded 1 | . 1 . Melee . | . . . Uniques/NPCs Destroyed . | . . . Combat | -11 -10 -10 -------- Run | Yrd Mat Min Hostile Shots Fired 102 | . 85 17 Missed 20 | . 18 2 Hits 82 | . 67 15 Melee 2 | . . 2 Projectile 80 | . 67 13 AOE 14 | . . 14 Damage Taken 1333 | . 774 559 Core 256 | . 110 146 Absorbed by Shields . | . . . Regen/Repaired (Parts) 23 | . 23 . Core Remaining (%) 100 | 100 . . Volleys Fired 91 | 16 65 10 Largest 2 | 2 2 2 Hottest 53 | 40 53 50 Shots Fired 168 | 32 122 14 Gun 164 | 32 118 14 Cannon . | . . . Launcher 4 | . 4 . Special . | . . . Kinetic 160 | 32 118 10 Thermal 4 | . . 4 Explosive 4 | . 4 . Electromagnetic . | . . . Robot Hit Streak 20 | 9 20 7 Robot Miss Streak 3 | 3 3 1 Penetration Max . | . . . Secondary Targets . | . . . Shots Hit Robots 112 | 24 75 13 Core Hits 43 | 8 30 5 Critical Kills . | . . . Critical Parts Destroyed . | . . . Critical Strikes 1 | . . 1 Burn 1 | . . 1 Melee Attacks . | . . . Impact . | . . . Slashing . | . . . Piercing . | . . . Sneak Attacks . | . . . Combat Hostiles . | . . . Follow-up Attacks . | . . . Damage Inflicted 1785 | 197 1399 189 Guns 1507 | 197 1126 184 Cannons . | . . . Explosions 211 | . 211 . Melee . | . . . Ramming 67 | . 62 5 Kinetic 1456 | 197 1126 133 Thermal 51 | . . 51 Explosive 211 | . 211 . Electromagnetic . | . . . Impact . | . . . Slashing . | . . . Piercing . | . . . Highest Corruption . | . . . Average Corruption . | . . . Corruption Purged . | . . . Corruption Blocked . | . . . Overload Shots . | . . . Overflow Damage . | . . . Projectiles . | . . . Explosions . | . . . Melee . | . . . Knockbacks 1 | . 1 . Impact 1 | . 1 . Kinetic . | . . . Secondary . | . . . Self-Inflicted Damage . | . . . Shots . | . . . Rammed 15 | 1 13 1 Targets Rammed 15 | 1 13 1 Kicked . | . . . Crushed . | . . . Highest Temperature 30 | . 30 . Average Temperature 17 | . 17 . Received Heat Transfer 372 | . 372 . Siege Activations . | . . . Martial Activations . | . . . Shielding Activations . | . . . Robots Disrupted . | . . . Combat Hostiles . | . . . Robots Corrupted . | . . . Combat Hostiles . | . . . Parts Fried . | . . . Impact Corruptions . | . . . Robots Melted . | . . . Combat Hostiles . | . . . Parts Melted . | . . . Heat Transferred 222 | . . 222 Parts Sabotaged . | . . . Parts Stolen . | . . . Parts Stripped . | . . . Power Chain Reactions . | . . . Alert | -11 -10 -10 ------- Run | Yrd Mat Min Maximum Alert Level . | . . . Low Security (%) 100 | 100 100 100 Level 1 . | . . . Level 2 . | . . . Level 3 . | . . . Level 4 . | . . . Level 5 . | . . . High Security . | . . . Max Security . | . . . Peak Influence 145 | 10 145 22 Initial 22 | . . 22 Average 35 | . 43 4 Influence Increases 425 | 15 410 . Destroy 0b10 Robot/C 280 | . 280 . Destroy 0b10 Robot/NC 35 | 15 20 . Destroy Leader 74 | . 74 . Successful Hack 5 | . 5 . Destroy Structure 31 | . 31 . Influence Decreases 425 | 15 352 58 Entered New Map 36 | . . 36 Time Decay 363 | 15 326 22 Purge Threat 26 | . 26 . Squads Dispatched 4 | . 4 . Investigation 2 | . 2 . Extermination . | . . . Reinforcement 2 | . 2 . Assault . | . . . Garrison . | . . . Intercept . | . . . Searches Triggered . | . . . Construction Impeded . | . . . Haulers Reinforced . | . . . Active Scanning Responses . | . . . Cargo Convoy Interrupts . | . . . Stealth | -11 -10 -10 --------- Run | Yrd Mat Min Distress Signals 5 | . 3 2 Communications Jammed . | . . . Distress Signals . | . . . Times Spotted 33 | . 30 3 Peak Tracking Total 4 | . 4 2 Tactical Retreats . | . . . Traps | -11 -10 -10 ------- Run | Yrd Mat Min Traps Triggered 2 | . 2 . Indirectly . | . . . Trap Hack Attempts . | . . . Triggered . | . . . Disarmed . | . . . Reprogrammed . | . . . Reused . | . . . Traps Extracted . | . . . Installed . | . . . Triggered . | . . . Machines | -11 -10 -10 ---------- Run | Yrd Mat Min Machines Disabled . | . . . Max in Single Turn . | . . . Machines Repaired . | . . . Machines Dismantled . | . . . Machines Sabotaged . | . . . Overloaded Fab Kills . | . . . Hacking | -11 -10 -10 --------- Run | Yrd Mat Min Machines Accessed 7 | . 7 . Terminals 4 | . 4 . Fabricators . | . . . Repair Stations 1 | . 1 . Recycling Units 2 | . 2 . Scanalyzers . | . . . Garrison Access . | . . . Total Hacks 16 | . 16 . Successful 9 | . 9 . Failed 7 | . 7 . Catastrophic . | . . . Database Lockouts . | . . . Manual 4 | . 4 . Terminals 10 | . 10 . Fabricators . | . . . Repair Stations 3 | . 3 . Recycling Units 3 | . 3 . Scanalyzers . | . . . Garrison Access . | . . . Terminal Hacks 5 | . 5 . Alert Level 2 | . 2 . Unreport Threat 1 | . 1 . Reinforcement Status 1 | . 1 . Recall Reinforcements 1 | . 1 . Fabricator Hacks . | . . . Repair Station Hacks 2 | . 2 . Scan Component 1 | . 1 . Repair 1 | . 1 . Recycling Unit Hacks 2 | . 2 . Retrieve Matter 1 | . 1 . Retrieve Components 1 | . 1 . Scanalyzer . | . . . Garrison Access Hacks . | . . . Unauthorized Hacks . | . . . Terminals . | . . . Fabricators . | . . . Repair Stations . | . . . Recycling Units . | . . . Scanalyzers . | . . . Garrison Access . | . . . Data Cores Recovered . | . . . Used . | . . . Hacking Detections 5 | . 5 . Full Trace Events 3 | . 3 . Feedback Events . | . . . Feedback Blocked . | . . . Robot Schematics Acquired . | . . . Robots Built . | . . . Authchips . | . . . Time . | . . . Total Robot Build Rating . | . . . Part Schematics Acquired . | . . . Parts Built . | . . . Authchips . | . . . Time . | . . . Total Part Build Rating . | . . . Parts Repaired 1 | . 1 . Time 38 | . 38 . Parts Recycled . | . . . Recycled Matter . | . . . Retrieved Matter . | . . . Retrieved Components 10 | . 10 . Parts Scanalyzed . | . . . Part Schematics Acquired . | . . . Parts Damaged . | . . . Bothacking | -11 -10 -10 ------------ Run | Yrd Mat Min Used RIF Installer . | . . . Robots Hacked . | . . . Non-combat . | . . . Combat . | . . . Robot Hacks Applied . | . . . Relay Couplers Released . | . . . Fabnet Peak Effective % . | . . . Robots Rewired . | . . . Allies Hacked . | . . . Hacks Repelled . | . . . Allies | -11 -10 -10 -------- Run | Yrd Mat Min Total Allies . | . . . Largest Group . | . . . Highest-Rated Group . | . . . Highest-Rated Ally . | . . . Total Orders . | . . . Ally Attacks . | . . . Total Damage . | . . . Kills . | . . . Allies Corrupted . | . . . Allies Melted . | . . . Intel | -11 -10 -10 ------- Run | Yrd Mat Min Active Infowar (turns) 196 | 110 86 . Terrain 196 | 110 86 . Robot Analysis Total . | . . . Derelict Logs Recovered . | . . . Drone Launches . | . . . Drone Recoveries . | . . . Exploration | -11 -10 -10 ------------- Run | Yrd Mat Min Turns Passed 2043 | 268 1628 147 Spaces Moved 1028 | 136 818 74 Core 8 | 8 . . Treads 1020 | 128 818 74 Legs . | . . . Wheels . | . . . Hover . | . . . Flight . | . . . Fastest Speed 50 | 50 160 160 Average Speed 159 | 153 160 160 Slowest Speed 160 | 160 160 160 Overloaded Moves . | . . . Propulsion Burnouts . | . . . Robots Hopped . | . . . Potential Cave-ins . | . . . Cave-ins Triggered . | . . . Exploration Rate (%) 38 | 8 81 25 Regions Visited 2 Branch Regions 1 Pre-discovered Areas . | . . . Known Exits Taken . | . . . Unknown Exits Taken 2 | 1 1 . Scrap Searched . | . . . Spaces Dug . | . . . Terrain Destroyed 27 | . 27 . Melee . | . . . Projectile . | . . . AOE 27 | . 27 . Terrain Rammed . | . . . Walls Destroyed . | . . . Machines Disabled . | . . . Actions | -11 -10 -10 --------- Run | Yrd Mat Min Total 1260 | 169 1003 88 Wait 71 | . 71 . Move 1026 | 135 817 74 Hop . | . . . Pick Up 27 | 10 17 . Fast Attach . | . . . Attach 12 | 7 2 3 Detach . | . . . Swap 14 | . 14 . Drop 4 | . 4 . Fire 91 | 16 65 10 Melee . | . . . Ram . | . . . Kick . | . . . Crush 15 | 1 13 1 Escape Stasis . | . . . Rewire . | . . . Trap . | . . . Miscellaneous . | . . . Route ------- -11/Scrapyard -10/Materials (discovered 4 exits: [*Mat x2] / [*Min x2]) -10/Mines History --------- Turn | Location | Event 25 | -11/Scrapyard | Discovered new exit (range 15) 269 | -11/Scrapyard | Entered Materials 318 | -10/Materials | Build established: Mutant 633 | -10/Materials | Discovered new exit (range 7) 867 | -10/Materials | Repaired Lgt. Nuclear Core 1009 | -10/Materials | Discovered new exit (range 13) 1518 | -10/Materials | Discovered new exit (range 16) 1663 | -10/Materials | Discovered new exit (range 13) 1897 | -10/Materials | Entered Mines 1898 | -10/Mines | Assembled infested the area 1903 | -10/Mines | Assisted by a Guerilla fighting off Assembled 1993 | -10/Mines | Core integrity fell below 50% 2041 | -10/Mines | Core integrity fell below 20% 2044 | -10/Mines | Destroyed by D-53 Grenadier with Mini Grenade Launcher Last Messages --------------- coming from, and they're closing on this area, come on!" T-07 Excavator is excavating. Lgt. Nuclear Core destroyed. as-50874 destroyed. Acquired 13 matter. Acquired 6 matter. Slammed into U-05 Engineer. Hvy. Assault Rifle destroyed. Lgt. Ion Engine destroyed. Heat Sink destroyed. Hvy. Assault Rifle destroyed. The unstable cave ceiling collapses. D-53 Grenadier destroyed. Imp. Treads destroyed. Destroyed Shock Absorption System. Imp. Treads destroyed. The unstable cave ceiling collapses. D-53 Grenadier suffers critical hit (Burn). The unstable cave ceiling collapses. Map ----- +----------------------------------------------------+ | ??????????????????#???????????????????????????? | | ?????????????????? ???????????????????????????? | | ????????????????? #???????????????????????????? | | ????????????????? #???????????????????????????? | | ????????????????? #???????????????????????????? | | ????????????????# ##??????????????????????????? | | ????????######?# ##?????????????????????????? | | ????????# # ##????????????????????????? | | ?????????? ##???????????????????????? | | ???????????# ##??????????????????????? | | ???????????# ##?????????????????????? | | ???????????# #?????????????????????? | | ???????????# """ #?????????????????????? | | ???????????## """ ##?????????????????????? | | ???####????## """ ####??????????????????????? | | ??## ##??## ##?????????????????????????? | | ?## #### #??????????????????????????? | | ?# ##??????????????????????????? | | ?# ##???????????????????????????? | | ??# ##????????????? #?????????????? | | ??# ##?########???? ??????????????? | | ??## ## ##?## ##? ????????????????? | | ???## ### #?## # #?? ##???????????? | | ????# #?# #?# # # #???????????? | | ????# #?# ##?## #??????????? | | ????# #?## #??# @ ????????? | | ????# #??## #### d ????????? | | ????# #???# ????????? | | ????# ##### #### # ?????????? | | ????# ## #??#?## # #?????????? | | ????# ## ####??### ??????????? | | ????# ## #### ##???# ## ??????????? | | ????# #???## < #?? ??????????? | | ????#### """ ##????## #??????????????? | | ???????#### """ #??????# ??????????????? | | ?????????## """ #???????# % ?????????????? | | ?????????# #????????# ????????????? | | ?????????# ##????????? ??????????????? | | ?????????## ##??????????? ????????????????? | | ??????????### ##?????????????????????????????? | | ????????????####??????????????????????????????? | | ??????????????????????????????????????????????? | | ??????????????????????????????????????????????? | | ??????????????????????????????????????????????? | | ??????????????????????????????????????????????? | | ??????????????????????????????????????????????? | | ??????????????????????????????????????????????? | | | | | | | +----------------------------------------------------+ Best States ------------- Heat Dissipation 35 Energy Generation 14 Energy Capacity 160 Matter Stores 300 Matter Capacity 300 Sight Range 16 Terrain Scan Range 16 Terrain Scan Density 10 Armor Coverage 225 Evasion (%) 40 Recoil Reduction 2 Item Schematics ----------------- None Robot Schematics ------------------ None Fabricated ------------ Nothing Repaired ---------- Lgt. Nuclear Core | 54% | -10/Materials Alien Tech Used ----------------- None Achievements -------------- None Challenges ------------ None Game ------ Seed NullGravitonRay Manual? 0 Play Time 00:19:03 Cumulative 7.4 hours Start 2025.10.10 @ 23:42:24 End 2025.10.11 @ 00:07:58 Sessions 1 Manual Loads 0 Difficulty Rogue Special Mode None Game No. 11 Rogue 3 Adventurer 8 Explorer 0 Win Type - Total 0 Types 0/0/0/0/0/0/0/0/0/0 Lore% 4 Gallery% 12 Achievement% 17 Wizard Run 0 Options --------- Layout 1 ASCII 0 Keyboard 0 Movement Mouse Keybinds 0 Fullscreen 1 Font 24/Smallcaps Map View 50x40 Zoom Use 0% Tactical HUD 0 Map Filters NONE Filters NONE Steam 1 RUN: 042367d9-3981-403a-8b7e-ecda8281abb5